Cogmind - Beta 11 X4 @@@ ROGUE MODE // 2021.05.15 @ 22:34:20 Player: Terminus Result: Self-destructed Performance ------------- Evolutions (7) 3500 Regions Visited (29) 5800 Robots Destroyed (286) 1430 Value Destroyed (11195) 11195 Prototype IDs (56) 1120 Alien Tech Used (1) 200 Bonus (6032) 6032 TOTAL SCORE: 29277 Bonus ------- Triggered High Security 500 High Alert Combat Kills 2412 Follower Combat Kills 4770 Met Data Miner 300 Met Imprinter 300 Was Imprinted 300 Met Warlord at Base 500 MAIN.C Attacked Warlord 500 Friendly Fire -3550 Cogmind --------- Core Integrity 1157/1300 Matter 139/300 Energy 140/375 System Corruption 22% Temperature Cool (0) Movement Walking (192) Ox1 Location -3/Research Parts ------- > --- POWER (2) -------- Particle Reactor Compact Particle Reactor > --- PROPULSION (4) --- Zionite Composite Leg II Experimental Myomer Leg Experimental Myomer Leg > --- UTILITY (12) ----- Advanced Cooling System Advanced Cooling System Large Storage Unit Machine Analyzer Advanced Signal Interpreter Armor Integrity Analyzer Advanced Particle Charger Advanced Transmission Jammer Zionite Weapon Casing Centrium Medium Armor Plating > --- WEAPON (4) ------- Zionite Laser-S Zionite Laser-M Zionite Laser-M Heavy Proton Missile Launcher > --- INVENTORY (15) --- Zionite Heavy DM Reactor Zionite Heavy DM Reactor Advanced Cooling System Advanced Energy Well (500) Experimental Energy Well (412) Improved Powered Armor 7V-RTL's Ultimate Field Force Rifle Zionite Laser-M HERF Cannon Heavy Plasma Cannon Improved Plasma Cutter Peak State ------------ > --- POWER ------------ Particle Reactor Compact Particle Reactor > --- PROPULSION ------- Zionite Composite Leg II Zionite Composite Leg II Experimental Myomer Leg Experimental Myomer Leg > --- UTILITY ---------- Advanced Cooling System Advanced Cooling System Large Storage Unit Experimental Energy Well Machine Analyzer Experimental Sensor Array Advanced Signal Interpreter Armor Integrity Analyzer Advanced Particle Charger Advanced Transmission Jammer Centrium Medium Armor Plating Medium Regenerative Plating > --- WEAPON ----------- Zionite Laser-S Zionite Laser-M Zionite Laser-M Zionite Laser-M > --- INVENTORY -------- Zionite Heavy DM Reactor Zionite Heavy DM Reactor Zionite Composite Leg II Advanced Cooling System Advanced Energy Well Long-range Sensor Array Zionite Weapon Casing Improved Powered Armor 7V-RTL's Ultimate Field Force Rifle Advanced Variable Charge Gun HERF Cannon Heavy Plasma Cannon Heavy Proton Missile Launcher Improved Plasma Cutter [Rating: 162] Favorites ----------- Power Light Fission Core Engine Heavy Ion Engine Power Core Light Fission Core Reactor Cold Fusion Reactor Propulsion Improved Carbon-fiber Leg Leg Improved Carbon-fiber Leg Utility Large Storage Unit Device Improved Heat Sink Storage Large Storage Unit Processor Advanced Signal Interpreter Protection Layered Medium Armor Plating Weapon Compact Ion Cannon Energy Gun Zionite Laser-S Energy Cannon Compact Ion Cannon Ballistic Gun Minigun Launcher Heavy Proton Missile Launcher Special Weapon Plasma Cutter Impact Weapon Heavy Hammer Build | -11 -10 -10 -10 -9 -8 -8 -7 -7 -7 -7 -6 -6 -6 -6 -6 -6 -6 -5 -5 -5 -5 -5 -4 -4 -4 -4 -4 -4 -3 ------- Run | Scr Mat Min Exi Min Mat Sto Fac Low Low Dat Pro Fac Was Fac Low Low Zio Pro Fac Upp Upp War Pro Fac Ext Cet Arc Hub Res Slots Evolved 14 | . . . . . 4 . 2 . . . . 2 . . . . . . 2 . . . . 2 . . . . 2 Power 1 | . . . . . . . . . . . . . . . . . . . 1 . . . . . . . . . . Propulsion 2 | . . . . . 1 . . . . . . 1 . . . . . . . . . . . . . . . . . Utility 10 | . . . . . 2 . 2 . . . . 1 . . . . . . 1 . . . . 2 . . . . 2 Weapon 1 | . . . . . 1 . . . . . . . . . . . . . . . . . . . . . . . . Parts Attached 313 | 6 12 . 1 3 34 24 48 7 2 4 2 12 1 11 2 3 7 9 36 2 14 7 . 17 13 12 . 2 22 Power 20 | 1 1 . . . 3 1 6 . . . . 1 . . . . . 1 2 . . . . . 2 1 . . 1 Engine 10 | 1 1 . . . 3 1 4 . . . . . . . . . . . . . . . . . . . . . . Core 5 | . . . . . . . 1 . . . . . . . . . . 1 2 . . . . . 1 . . . . Reactor 5 | . . . . . . . 1 . . . . 1 . . . . . . . . . . . . 1 1 . . 1 Propulsion 40 | 2 4 . . . 2 4 7 1 . . . 3 . . 1 . . 2 2 . . 4 . . 3 1 . 1 3 Treads . | . . . . . . . . . . . . . . . . . . . . . . . . . . . . . . Leg 40 | 2 4 . . . 2 4 7 1 . . . 3 . . 1 . . 2 2 . . 4 . . 3 1 . 1 3 Wheel . | . . . . . . . . . . . . . . . . . . . . . . . . . . . . . . Hover . | . . . . . . . . . . . . . . . . . . . . . . . . . . . . . . Flight . | . . . . . . . . . . . . . . . . . . . . . . . . . . . . . . Utility 139 | 1 4 . 1 2 10 2 20 4 . . . 4 . 9 . 2 2 4 20 2 7 3 . 13 7 6 . 1 15 Device 85 | . 2 . . 2 4 1 15 4 . . . 2 . 7 . 2 . 2 15 2 6 2 . 9 3 1 . . 6 Storage 16 | 1 2 . 1 . 1 . 1 . . . . . . 1 . . . . 3 . . . . . 2 2 . . 2 Processor 11 | . . . . . 1 . 2 . . . . 2 . . . . 1 1 2 . . . . 1 . . . . 1 Hackware . | . . . . . . . . . . . . . . . . . . . . . . . . . . . . . . Protection 27 | . . . . . 4 1 2 . . . . . . 1 . . 1 1 . . 1 1 . 3 2 3 . 1 6 Artifact . | . . . . . . . . . . . . . . . . . . . . . . . . . . . . . . Weapon 114 | 2 3 . . 1 19 17 15 2 2 4 2 4 1 2 1 1 5 2 12 . 7 . . 4 1 4 . . 3 Energy Gun 37 | . . . . . 6 13 2 1 1 1 1 1 1 1 1 . . . 3 . . . . 2 1 . . . 2 Energy Cannon 45 | . 1 . . 1 5 1 9 1 . 3 . 1 . 1 . 1 4 2 7 . 4 . . 2 . 2 . . . Ballistic Gun 10 | 2 1 . . . 7 . . . . . . . . . . . . . . . . . . . . . . . . Ballistic Cannon . | . . . . . . . . . . . . . . . . . . . . . . . . . . . . . . Launcher 20 | . 1 . . . . 3 4 . 1 . 1 2 . . . . 1 . 2 . 3 . . . . 1 . . 1 Special Weapon 1 | . . . . . . . . . . . . . . . . . . . . . . . . . . 1 . . . Impact Weapon 1 | . . . . . 1 . . . . . . . . . . . . . . . . . . . . . . . . Slashing Weapon . | . . . . . . . . . . . . . . . . . . . . . . . . . . . . . . Piercing Weapon . | . . . . . . . . . . . . . . . . . . . . . . . . . . . . . . Special Melee Weapon . | . . . . . . . . . . . . . . . . . . . . . . . . . . . . . . Unidentified Prototypes 30 | . . . . 1 3 3 6 1 . . . . . . . . 1 . 3 . . 2 . 2 2 4 . . 2 Corrupted Parts 7 | . . . . . . . 1 . . . . . . . . 1 . 2 . . . 1 . . . . . . 2 System Corruption 36 | . . . . . . . 3 . . . . . . . . 2 . 8 . . . 4 . . . . . . 19 Parts Lost 34 | . 1 1 . . 1 4 11 1 . . . 3 2 1 . . . . 4 . . . . . 1 . . 1 3 Power 1 | . . . . . . . . . . . . 1 . . . . . . . . . . . . . . . . . Propulsion 11 | . 1 . . . 1 3 3 . . . . 1 . 1 . . . . 1 . . . . . . . . . . Utility 9 | . . . . . . . 2 . . . . . 2 . . . . . . . . . . . 1 . . 1 3 Weapon 13 | . . 1 . . . 1 6 1 . . . 1 . . . . . . 3 . . . . . . . . . . Highest Loss Streak 7 | . 1 1 . . 1 2 7 1 . . . 3 2 1 . . . . 2 . . . . . 1 . . 1 1 Average Slot Usage (%) 98 | . 97 100 85 99 99 99 99 98 100 74 100 99 82 93 93 94 91 97 99 100 100 100 100 100 99 100 100 100 99 Engine 4 | . 14 14 14 14 9 9 4 7 7 7 7 5 . . . . . . . . . . . . . . . . . Core 2 | . . . . . . . . . . . . . . . . . . 5 11 11 11 11 11 10 5 5 5 5 1 Reactor 1 | . . . . . . . 2 . . . . . 6 6 6 6 6 . . . . . . . 4 5 5 5 7 Leg 23 | . 28 28 28 28 27 26 22 22 21 21 21 24 25 19 24 25 25 24 22 22 22 22 22 20 20 20 20 20 18 Device 19 | . 11 14 14 13 12 18 22 23 28 28 28 25 21 24 25 25 25 24 23 16 16 16 16 20 19 16 20 20 21 Storage 7 | . 14 14 14 14 9 9 7 7 7 7 7 6 6 6 6 6 6 6 5 5 5 5 5 5 5 8 5 5 4 Processor 8 | . . . . . 7 . 7 7 7 7 7 12 8 6 6 6 6 6 8 16 16 16 16 15 15 15 15 15 17 Protection 5 | . . . . . 7 9 6 6 . . . . . 6 6 6 6 5 5 5 5 5 5 9 10 10 10 10 9 Energy Gun 6 | . . . . . 2 25 13 7 5 . 6 5 . 6 . . . . . 5 1 . . 9 12 15 15 15 13 Energy Cannon 11 | . 2 14 . 13 2 . 8 15 21 3 21 17 12 17 18 19 16 22 20 16 19 22 22 10 7 4 5 5 3 Ballistic Gun 4 | . 25 14 14 14 21 . . . . . . . . . . . . . . . . . . . . . . . . Naked Turns . | . . . . . . . . . . . . . . . . . . . . . . . . . . . . . . Heaviest Build 109 | 11 32 32 28 32 47 44 60 66 70 66 66 69 70 77 64 69 60 62 71 65 67 68 68 69 81 86 74 74 109 Greatest Support 106 | 20 26 26 26 26 41 47 51 51 51 51 51 66 61 61 61 61 61 76 76 68 68 83 83 83 98 103 103 103 106 Greatest Overweight (x) 4 | 3 1 1 1 1 1 1 4 1 1 1 1 1 1 1 1 1 . . . . . 1 . . . . . . 1 Average Overweight (x) . | . . 1 1 1 . . . . 1 . 1 . . 1 . . . . . . . . . . . . . . . Largest Inventory Capacity 15 | 8 15 15 15 15 15 15 15 15 15 15 15 15 15 15 15 15 15 15 15 15 15 15 15 15 15 15 15 15 15 Average Capacity 14 | 7 10 15 15 15 15 15 15 15 15 15 15 15 15 15 15 15 15 15 15 15 15 15 15 15 15 15 15 15 15 Most Carried 15 | 2 15 15 15 15 15 15 15 15 15 15 15 15 14 14 15 15 15 15 15 15 15 15 15 15 15 15 15 15 15 Average Carried 14 | . 7 14 14 14 14 14 13 14 15 15 15 14 13 12 14 14 14 14 14 15 14 14 15 14 14 14 15 14 14 Final Capacity 15 | 8 15 15 15 15 15 15 15 15 15 15 15 15 15 15 15 15 15 15 15 15 15 15 15 15 15 15 15 15 15 Final Carried 15 | 2 14 15 14 15 15 15 15 15 15 15 15 13 14 14 15 15 15 15 15 15 15 15 15 15 15 15 15 14 12 Class Distribution -------------------- 27% | Scavenger-Skirmisher 25% | Scavenger-Mutant 11% | Scavenger-Tank 11% | Mutant 10% | Scavenger-Gunner 8% | Gunner 4% | Tank Dominant Class ---------------- Mutant | -10/Materials Mutant | -10/Mines Mutant | -10/Exiles Mutant | -9/Mines Gunner | -8/Materials Scavenger-Tank | -8/Storage Scavenger-Tank | -7/Factory Scavenger-Mutant | -7/Lower Caves Scavenger-Gunner | -7/Lower Caves Scavenger-Mutant | -7/Data Miner Scavenger-Mutant | -6/Proximity Caves Scavenger-Mutant | -6/Factory Scavenger-Mutant | -6/Waste Scavenger-Tank | -6/Factory Scavenger-Skirmisher | -6/Lower Caves Scavenger-Skirmisher | -6/Lower Caves Scavenger-Mutant | -6/Zion Scavenger-Skirmisher | -5/Proximity Caves Scavenger-Skirmisher | -5/Factory Scavenger-Mutant | -5/Upper Caves Scavenger-Mutant | -5/Upper Caves Scavenger-Mutant | -5/Warlord Scavenger-Mutant | -4/Proximity Caves Scavenger-Skirmisher | -4/Factory Scavenger-Skirmisher | -4/Extension Scavenger-Gunner | -4/Cetus Scavenger-Skirmisher | -4/Archives Scavenger-Skirmisher | -4/Hub_04(d) Scavenger-Gunner | -3/Research Resources | -11 -10 -10 -10 -9 -8 -8 -7 -7 -7 -7 -6 -6 -6 -6 -6 -6 -6 -5 -5 -5 -5 -5 -4 -4 -4 -4 -4 -4 -3 ----------- Run | Scr Mat Min Exi Min Mat Sto Fac Low Low Dat Pro Fac Was Fac Low Low Zio Pro Fac Upp Upp War Pro Fac Ext Cet Arc Hub Res Matter Collected 5133 | 222 383 9 . 51 1318 284 549 123 47 . 34 243 . 216 67 14 46 184 383 20 272 78 . 170 123 127 . 20 150 Remotely . | . . . . . . . . . . . . . . . . . . . . . . . . . . . . . . Salvage Created 13535 | . 650 43 . 107 2356 2013 1721 84 73 . 30 576 . 479 126 84 . 270 1221 60 900 . . 356 546 140 . 201 1499 Parts 595 | . 39 5 . 5 134 92 72 4 4 . 6 43 . 12 4 5 . 8 44 2 24 . . 5 17 14 . 4 52 Haulers Intercepted 24 | . 2 . . . 6 6 3 . . . . 1 . 1 . . . . 1 . . . . 2 . . . 2 . Recyclers Shooed 14 | . 5 . . . . 2 3 . . . . 2 . 2 . . . . . . . . . . . . . . . Parts Field Recycled . | . . . . . . . . . . . . . . . . . . . . . . . . . . . . . . Retrieved Matter . | . . . . . . . . . . . . . . . . . . . . . . . . . . . . . . Parts Self-Destructed 72 | . . . . . . . . 3 7 . 6 . . . 3 5 . 3 . 2 3 40 . . . . . . . Prevented 51 | . . . . . . . . . . . . . . . 3 . . 3 . . 21 24 . . . . . . . Kills | -11 -10 -10 -10 -9 -8 -8 -7 -7 -7 -7 -6 -6 -6 -6 -6 -6 -6 -5 -5 -5 -5 -5 -4 -4 -4 -4 -4 -4 -3 ------- Run | Scr Mat Min Exi Min Mat Sto Fac Low Low Dat Pro Fac Was Fac Low Low Zio Pro Fac Upp Upp War Pro Fac Ext Cet Arc Hub Res Combat Hostiles Destroyed 213 | . 16 3 . 3 42 29 26 1 4 . 4 11 . 4 2 1 . 3 19 1 13 . . 3 6 1 . . 21 Guns 96 | . 10 1 . . 37 23 8 . . . . 1 . . . . . . 2 1 . . . 1 4 1 . . 7 Cannons 53 | . 3 2 . 3 5 . 9 . 1 . 1 5 . 4 2 1 . 3 11 . 1 . . . 1 . . . 1 AOE 42 | . 3 . . . . 4 5 . 3 . 3 5 . . . . . . 4 . 5 . . . . . . . 10 Classes Destroyed 20 | . 5 . . 1 4 4 2 1 . . . 1 . . . . . 1 . . . . . . . . . . 1 Worker 17 | . . . . . 1 2 3 . . . . 6 . . . . . . 5 . . . . . . . . . . Builder 5 | . . . . . 1 1 1 . . . . 1 . . . . . . 1 . . . . . . . . . . Tunneler 1 | . . . . . . . . . . . . 1 . . . . . . . . . . . . . . . . . Hauler 24 | . 2 . . . 6 6 3 . . . . 1 . 1 . . . . 1 . . . . 2 . . . 2 . Recycler 7 | . . . . . . 1 3 . . . . 1 . 1 . . . . . . . . . . 1 . . . . Mechanic 1 | . . . . . . 1 . . . . . . . . . . . . . . . . . . . . . . . Operator 2 | . 1 . . . . 1 . . . . . . . . . . . . . . . . . . . . . . . Watcher 15 | . 1 . . . 4 2 2 . . . . 2 . . . . . . 4 . . . . . . . . . . Swarmer 41 | . 3 3 . . 7 3 5 . . . 4 7 . . . . . . 4 . 2 . . . . . . . 3 Grunt 93 | . 13 . . 2 25 9 8 . 3 . . . . 2 1 . . 2 11 . 6 . . . . 1 . . 10 Brawler 8 | . . . . . 2 1 . . 1 . . 1 . . . . . . . . 2 . . . . . . . 1 Duelist 6 | . . . . . . 2 . . . . . 1 . . . . . . . . 1 . . . 1 . . . 1 Protector 1 | . . . . . . . . . . . . . . . . . . . . . . . . . . . . . 1 Sentry 31 | . . . . . 8 13 2 . . . . . . 1 . . . . . . 2 . . 2 2 . . . 1 Specialist 2 | . . . . . . . 2 . . . . . . . . . . . . . . . . . . . . . . Hunter 6 | . . . . . . 1 2 . . . . 1 . . . . . 1 . . . . . . . . . . 1 Programmer 20 | . . . . . . . 7 . . . . 1 . 1 . . . . 4 1 . . . 1 2 . . . 3 Behemoth 4 | . . . . . . . . 1 . . . . . . 1 1 . . . . . . . . 1 . . . . Assembled 1 | . . . . 1 . . . . . . . . . . . . . . . . . . . . . . . . . Mutant 1 | . . . . . . . . . . . . . . . . . . 1 . . . . . . . . . . . Best Kill Streak 18 | . 5 3 . 2 6 6 4 1 4 . 4 18 . 3 1 1 . 2 9 1 6 . . 1 4 1 . 1 5 Combat Bots Only 7 | . 5 3 . 2 6 6 4 1 4 . 4 7 . 2 1 1 . 2 5 1 6 . . 1 3 1 . . 5 Max Kills in Single Turn 8 | . 2 2 . 1 3 3 4 1 3 . 2 8 . 1 1 1 . 2 4 1 2 . . 1 1 1 . 1 2 Gunslinging 1 | . . . . . 1 1 . . . . . . . . . . . . . . . . . . . . . . 1 Exploded 3 | . 2 . . . . 2 3 . 3 . 2 2 . . . . . . 2 . 2 . . . . . . . 2 Melee . | . . . . . . . . . . . . . . . . . . . . . . . . . . . . . . Uniques/NPCs Destroyed 1 | . . . . . . . . . . . . . . . . . . . . . . . . . . 1 . . . A7 (-4/Cetus) Combat | -11 -10 -10 -10 -9 -8 -8 -7 -7 -7 -7 -6 -6 -6 -6 -6 -6 -6 -5 -5 -5 -5 -5 -4 -4 -4 -4 -4 -4 -3 -------- Run | Scr Mat Min Exi Min Mat Sto Fac Low Low Dat Pro Fac Was Fac Low Low Zio Pro Fac Upp Upp War Pro Fac Ext Cet Arc Hub Res Damage Taken 10235 | . 435 90 . 43 1170 975 2184 219 17 . 18 945 257 191 . 263 . 469 805 46 153 4 . 72 163 128 . 109 1479 Core 1293 | . 44 8 . . 170 135 316 28 . . . 131 106 33 . 31 . 38 73 . 24 . . . 13 . . . 143 Absorbed by Shields 46 | . . . . . . . . . . . . . . . . . . . . . . . . . 33 13 . . . Core Remaining (%) 74 | 100 . . . 79 . 44 . . . . 50 . . . . . . 60 . . . . 90 . . . . 98 . Volleys Fired 707 | . 60 5 . 5 104 95 84 11 7 . 12 23 9 14 3 3 . 16 59 20 47 18 12 23 8 18 . 9 42 Largest 4 | . 2 2 . 2 3 3 3 4 3 . 2 4 2 4 4 4 . 4 4 4 4 1 1 4 4 4 . 4 4 Hottest 350 | . 88 88 . 88 204 190 260 323 245 . 180 314 180 314 314 335 . 325 350 350 350 90 90 300 300 283 . 283 283 Shots Fired 1714 | . 117 10 . 10 311 266 227 29 15 . 22 65 18 41 12 13 . 38 142 29 49 18 12 53 29 41 . 36 111 Gun 945 | . 104 5 . 5 260 246 106 7 . . . 12 . 7 2 . . . 4 3 . . . 27 21 24 . 27 85 Cannon 698 | . 10 5 . 5 51 12 112 22 12 . 20 48 18 34 10 13 . 38 136 26 33 18 12 26 8 7 . 9 13 Launcher 62 | . 3 . . . . 8 9 . 3 . 2 5 . . . . . . 2 . 16 . . . . 1 . . 13 Special 9 | . . . . . . . . . . . . . . . . . . . . . . . . . . 9 . . . Kinetic 365 | . 104 5 . 5 251 . . . . . . . . . . . . . . . . . . . . . . . . Thermal 1287 | . 10 5 . 5 60 258 218 29 12 . 20 60 18 41 12 13 . 38 140 29 33 18 12 53 29 40 . 36 98 Explosive 19 | . 3 . . . . 2 4 . 3 . 2 3 . . . . . . 2 . . . . . . . . . . Electromagnetic 43 | . . . . . . 6 5 . . . . 2 . . . . . . . . 16 . . . . 1 . . 13 Robot Hit Streak 22 | . 17 5 . 8 15 22 12 10 6 . 7 10 . 8 8 9 . 4 17 11 15 . . 16 9 8 . 5 9 Robot Miss Streak 9 | . 4 1 . 3 8 9 5 1 1 . . 4 . 2 1 1 . 1 4 1 . . . 1 1 1 . 3 5 Penetration Max . | . . . . . . . . . . . . . . . . . . . . . . . . . . . . . . Secondary Targets 10 | . . . . . 6 1 1 . . . . . . . . . . . . . . . . . . . . . 2 Max Gunslinging Chain 1 | . . . . . 1 1 1 . . . . . . . . . . . . . . . . . . . . . 1 Shots Hit Robots 926 | . 74 7 . 6 187 163 163 14 8 . 1 26 . 30 8 6 . 12 59 8 12 . . 31 17 14 . 18 62 Core Hits 501 | . 37 3 . 5 97 56 79 4 12 . 5 34 . 14 5 4 . 5 43 2 18 . . 8 11 13 . 6 40 Critical Kills 7 | . 1 . . . 1 . 1 . . . . . . . . . . . 3 1 . . . . . . . . . Critical Parts Destroyed 1 | . . . . . . . . . . . . . . . . . . . . 1 . . . . . . . . . Critical Strikes 17 | . 1 . . . 1 6 4 . . . . . . . . . . . 3 2 . . . . . . . . . Burn 9 | . . . . . . 6 3 . . . . . . . . . . . . . . . . . . . . . . Meltdown 3 | . . . . . . . 1 . . . . . . . . . . . 2 . . . . . . . . . . Destroy 5 | . 1 . . . 1 . . . . . . . . . . . . . 1 2 . . . . . . . . . Melee Attacks 2 | . . . . . 2 . . . . . . . . . . . . . . . . . . . . . . . . Impact 2 | . . . . . 2 . . . . . . . . . . . . . . . . . . . . . . . . Slashing . | . . . . . . . . . . . . . . . . . . . . . . . . . . . . . . Piercing . | . . . . . . . . . . . . . . . . . . . . . . . . . . . . . . Sneak Attacks . | . . . . . . . . . . . . . . . . . . . . . . . . . . . . . . Combat Hostiles . | . . . . . . . . . . . . . . . . . . . . . . . . . . . . . . Follow-up Attacks . | . . . . . . . . . . . . . . . . . . . . . . . . . . . . . . Damage Inflicted 30582 | . 1046 148 . 127 3542 3732 4872 378 605 . 325 3137 . 852 241 185 . 414 2670 265 1284 . . 892 854 1003 . 653 3357 Guns 12573 | . 697 53 . 37 2755 3090 1621 140 . . . 186 . 117 40 . . . 73 84 . . . 505 599 595 . 520 1461 Cannons 9027 | . 144 84 . 80 736 216 2051 238 164 . 29 569 . 726 201 185 . 414 1740 181 117 . . 387 240 167 . 133 225 Explosions 8703 | . 173 . . . 23 400 1176 . 441 . 294 2380 . . . . . . 847 . 1167 . . . . 144 . . 1658 Melee . | . . . . . . . . . . . . . . . . . . . . . . . . . . . . . . Ramming 182 | . 32 11 . 10 28 26 24 . . . 2 2 . 9 . . . . 10 . . . . . 15 . . . 13 Kinetic 3522 | . 697 53 . 37 2735 . . . . . . . . . . . . . . . . . . . . . . . . Thermal 20053 | . 144 84 . 80 779 3409 3672 378 164 . 29 2046 . 843 241 185 . 414 1813 265 117 . . 892 839 859 . 653 2147 Explosive 3259 | . 173 . . . . . 608 . 441 . 294 896 . . . . . . 847 . . . . . . . . . . Electromagnetic 3566 | . . . . . . 297 568 . . . . 193 . . . . . . . . 1167 . . . . 144 . . 1197 Impact . | . . . . . . . . . . . . . . . . . . . . . . . . . . . . . . Slashing . | . . . . . . . . . . . . . . . . . . . . . . . . . . . . . . Piercing . | . . . . . . . . . . . . . . . . . . . . . . . . . . . . . . Highest Corruption 22 | . . . . . 1 1 19 19 19 19 19 . 20 20 20 22 22 8 2 3 3 4 . . . . . 1 22 Average Corruption 9 | . . . . . 1 1 12 19 19 19 19 . 13 20 20 20 22 7 1 2 3 3 . . . . . 1 19 Corruption Purged . | . . . . . . . . . . . . . . . . . . . . . . . . . . . . . . Effects 319 | . . . . . 8 2 57 49 28 6 30 . 6 30 26 20 2 22 5 4 11 1 . . . . . 1 11 Message Errors 74 | . . . . . 2 1 16 9 7 1 5 . 3 5 7 2 . 4 3 1 5 . . . . . . . 3 Matter Fused 53 | . . . . . . . 6 7 8 1 7 . . 5 4 2 1 7 . 2 1 1 . . . . . . 1 Heat Flow Errors 25 | . . . . . . . 3 3 2 1 5 . . 2 2 2 . 3 1 1 . . . . . . . . . Energy Discharges 44 | . . . . . 3 1 9 7 2 1 3 . 2 4 3 5 . 3 . . 1 . . . . . . . . Parts Rejected 5 | . . . . . . . 3 . . . . . . . 1 . . . . . . . . . . . . . 1 Data Loss (minor) 37 | . . . . . 2 . 8 2 2 1 6 . 1 3 3 2 . 2 . . 3 . . . . . . 1 1 Data Loss (major) 6 | . . . . . . . 1 3 . . . . . . . 1 . . . . . . . . . . . . 1 Misfires 9 | . . . . . . . 3 1 . . . . . 1 1 2 . 1 . . . . . . . . . . . Alerts 6 | . . . . . . . . 2 2 . . . . 1 1 . . . . . . . . . . . . . . Misdirections 49 | . . . . . . . 7 14 5 1 4 . . 6 4 3 1 . . . . . . . . . . . 4 Weapon Failures 11 | . . . . . 1 . 1 1 . . . . . 3 . 1 . 2 1 . 1 . . . . . . . . Overload Shots . | . . . . . . . . . . . . . . . . . . . . . . . . . . . . . . Overflow Damage 718 | . . . . . 14 . 127 . 7 . 27 300 . . . . . . 149 4 65 . . . . . . 8 17 Projectiles 201 | . . . . . 14 . 114 . . . . 12 . . . . . . 49 4 . . . . . . . 8 . Explosions 517 | . . . . . . . 13 . 7 . 27 288 . . . . . . 100 . 65 . . . . . . . 17 Melee . | . . . . . . . . . . . . . . . . . . . . . . . . . . . . . . Knockbacks 1 | . . . . . . . . . . . . 1 . . . . . . . . . . . . . . . . . Impact 1 | . . . . . . . . . . . . 1 . . . . . . . . . . . . . . . . . Kinetic . | . . . . . . . . . . . . . . . . . . . . . . . . . . . . . . Secondary . | . . . . . . . . . . . . . . . . . . . . . . . . . . . . . . Self-Inflicted Damage 265 | . 10 . . . . 9 . . . . . 26 . . . . . . 25 . 63 . . . . . . . 132 Shots 16 | . 1 . . . . 1 . . . . . 2 . . . . . . 1 . 4 . . . . . . . 7 Rammed . | . . . . . . . . . . . . . . . . . . . . . . . . . . . . . . Targets Rammed 37 | . 7 4 . 2 6 6 5 . . . 1 1 . 2 . . . . 1 . . . . . 1 . . . 1 Kicked 37 | . 7 4 . 2 6 6 5 . . . 1 1 . 2 . . . . 1 . . . . . 1 . . . 1 Crushed . | . . . . . . . . . . . . . . . . . . . . . . . . . . . . . . Highest Temperature 455 | . 34 4 . 28 455 324 231 205 94 56 170 54 . 201 79 159 . 177 384 324 132 . . 236 164 51 . 51 48 Average Temperature 65 | . 15 4 . 14 47 73 76 105 57 56 61 24 . 40 26 85 . 68 94 165 81 . . 98 57 28 . 34 18 Received Heat Transfer 2408 | . 204 27 . 106 648 459 339 12 9 . . . . 54 . 24 . 24 171 . 18 . . . 22 30 . 12 249 Effects 3 | . . . . . 1 . 1 . . . . . . . . . . . 1 . . . . . . . . . . Shutdowns 1 | . . . . . . . . . . . . . . . . . . . 1 . . . . . . . . . . Energy Bleed 2 | . . . . . 1 . 1 . . . . . . . . . . . . . . . . . . . . . . Siege Activations . | . . . . . . . . . . . . . . . . . . . . . . . . . . . . . . Robots Corrupted 10 | . . . . . . . 1 . . . . . . . . . . . . . 7 . . . . . . . 2 Combat Hostiles 9 | . . . . . . . . . . . . . . . . . . . . . 7 . . . . . . . 2 Parts Fried 22 | . . . . . . 2 3 . . . . . . . . . . . . . 11 . . . . . . . 6 Impact Corruptions . | . . . . . . . . . . . . . . . . . . . . . . . . . . . . . . Robots Melted 15 | . . . . . . 3 5 1 . . . . . . . . . . 2 . . . . 2 1 . . . 1 Combat Hostiles 13 | . . . . . . 2 4 1 . . . . . . . . . . 2 . . . . 2 1 . . . 1 Parts Melted 78 | . . . . . 3 15 17 . . . . 3 . 2 1 1 . 1 10 2 1 . . 6 3 4 . . 9 Heat Transferred 28720 | . 259 148 . 148 1419 6514 6164 594 222 . 37 2197 . 1184 333 235 . 568 2578 309 174 . . 1147 851 660 . 666 2313 Parts Sabotaged 6 | . . . . . . . . . . . . . . . . . . . . . . . . . . . . . 6 Parts Stolen . | . . . . . . . . . . . . . . . . . . . . . . . . . . . . . . Parts Stripped . | . . . . . . . . . . . . . . . . . . . . . . . . . . . . . . Power Chain Reactions 7 | . . . . . . 3 . . . . . 2 . . . . . . . . . . . . . . . . 2 Missiles Intercepted . | . . . . . . . . . . . . . . . . . . . . . . . . . . . . . . Alert | -11 -10 -10 -10 -9 -8 -8 -7 -7 -7 -7 -6 -6 -6 -6 -6 -6 -6 -5 -5 -5 -5 -5 -4 -4 -4 -4 -4 -4 -3 ------- Run | Scr Mat Min Exi Min Mat Sto Fac Low Low Dat Pro Fac Was Fac Low Low Zio Pro Fac Upp Upp War Pro Fac Ext Cet Arc Hub Res Peak Influence 2048 | . 262 161 . 141 530 799 1175 . . . . 448 157 159 . . . . 731 . . . . 126 712 808 473 866 2048 Initial 398 | . . 76 . . . 223 363 . . . . . 156 98 . . . . 34 . . . . . 4 398 323 165 349 Average 347 | . 137 154 . 16 274 571 546 . . . . 47 147 115 . . . . 282 . . . . 55 227 587 422 520 1084 Maximum Alert Level 5 | . 1 . . . 2 3 4 . . . . 2 . . . . . . 3 . . . . . 3 3 2 3 5 Low Security (%) 47 | 100 81 100 . 100 27 . 21 . . . . 98 100 100 . . . . 48 . . . . 100 47 . . 23 . Level 1 20 | . 18 . . . 58 13 35 . . . . 1 . . . . . . 11 . . . . . 26 11 45 15 5 Level 2 16 | . . . . . 14 66 1 . . . . . . . . . . . 30 . . . . . 26 68 54 25 17 Level 3 11 | . . . . . . 19 39 . . . . . . . . . . . 9 . . . . . . 19 . 35 24 Level 4 2 | . . . . . . . 1 . . . . . . . . . . . . . . . . . . . . . 30 Level 5 . | . . . . . . . . . . . . . . . . . . . . . . . . . . . . . 8 High Security 1 | . . . . . . . . . . . . . . . . . . . . . . . . . . . . . 13 Max Security . | . . . . . . . . . . . . . . . . . . . . . . . . . . . . . . Squads Dispatched 62 | . 4 . . . 6 7 8 . . . . 5 . 2 . . . . 10 . 1 . . 3 1 . . 3 12 Investigation 10 | . 2 . . . 1 . 3 . . . . 1 . 1 . . . . 1 . . . . . . . . . 1 Extermination 11 | . . . . . . . 2 . . . . 2 . . . . . . 2 . . . . 3 . . . . 2 Reinforcement 18 | . 2 . . . 3 2 3 . . . . 1 . 1 . . . . 3 . . . . . 1 . . 1 1 Assault 11 | . . . . . . 1 . . . . . . . . . . . . 1 . 1 . . . . . . . 8 Garrison 12 | . . . . . 2 4 . . . . . 1 . . . . . . 3 . . . . . . . . 2 . Intercept . | . . . . . . . . . . . . . . . . . . . . . . . . . . . . . . Construction Impeded 3 | . . . . . . . . . . . . 1 . . . . . . 2 . . . . . . . . . . Haulers Reinforced 4 | . . . . . . . . . . . . . . 1 . . . . 1 . . . . . . . . 1 1 Cargo Convoy Interrupts 1 | . . . . . . . 1 . . . . . . . . . . . . . . . . . . . . . . Stealth | -11 -10 -10 -10 -9 -8 -8 -7 -7 -7 -7 -6 -6 -6 -6 -6 -6 -6 -5 -5 -5 -5 -5 -4 -4 -4 -4 -4 -4 -3 --------- Run | Scr Mat Min Exi Min Mat Sto Fac Low Low Dat Pro Fac Was Fac Low Low Zio Pro Fac Upp Upp War Pro Fac Ext Cet Arc Hub Res Distress Signals 26 | . 2 . . 1 5 2 . . . . . 3 . 1 . . . . 3 . . . . . 3 1 . 2 3 Communications Jammed 38 | . . . . . . . . . . . . . . . . . . . . . . . . . . . . . 38 Distress Signals 37 | . . . . . . . . . . . . . . . . . . . . . . . . . . . . . 37 Times Spotted 387 | . 26 5 . 5 54 40 53 1 4 . 1 21 6 4 2 1 . 6 27 1 13 . . 7 21 11 . 12 66 Peak Tracking Total 11 | . 6 3 . 3 6 5 11 1 4 . 3 8 5 2 1 1 . 2 5 1 8 . . 1 7 5 . 4 10 Tactical Retreats 15 | . . . . . 2 1 2 . . . . . 2 . . . . 1 3 . 4 . . . . . . . . Traps | -11 -10 -10 -10 -9 -8 -8 -7 -7 -7 -7 -6 -6 -6 -6 -6 -6 -6 -5 -5 -5 -5 -5 -4 -4 -4 -4 -4 -4 -3 ------- Run | Scr Mat Min Exi Min Mat Sto Fac Low Low Dat Pro Fac Was Fac Low Low Zio Pro Fac Upp Upp War Pro Fac Ext Cet Arc Hub Res Traps Triggered 16 | . 2 . . . 2 3 3 . . . . 2 . . . . . . 1 . . . . . 2 . . 1 . Indirectly 1 | . . . . . . . . . . . . 1 . . . . . . . . . . . . . . . . . Trap Hack Attempts . | . . . . . . . . . . . . . . . . . . . . . . . . . . . . . . Triggered . | . . . . . . . . . . . . . . . . . . . . . . . . . . . . . . Disarmed . | . . . . . . . . . . . . . . . . . . . . . . . . . . . . . . Reprogrammed . | . . . . . . . . . . . . . . . . . . . . . . . . . . . . . . Reused . | . . . . . . . . . . . . . . . . . . . . . . . . . . . . . . Traps Extracted . | . . . . . . . . . . . . . . . . . . . . . . . . . . . . . . Installed . | . . . . . . . . . . . . . . . . . . . . . . . . . . . . . . Triggered 18 | . . . . . . . . . . . . . . . 3 . . 2 . . . 13 . . . . . . . Machines | -11 -10 -10 -10 -9 -8 -8 -7 -7 -7 -7 -6 -6 -6 -6 -6 -6 -6 -5 -5 -5 -5 -5 -4 -4 -4 -4 -4 -4 -3 ---------- Run | Scr Mat Min Exi Min Mat Sto Fac Low Low Dat Pro Fac Was Fac Low Low Zio Pro Fac Upp Upp War Pro Fac Ext Cet Arc Hub Res Machines Disabled 56 | . . . . . 4 8 7 . . . . 11 . . . . . . 14 . 1 . . 1 4 1 . 2 3 Max in Single Turn 9 | . . . . . 4 1 2 . . . . 9 . . . . . . 4 . 1 . . 1 1 1 . . 1 Garrison Access 4 | . . . . . 1 . . . . . . 1 . . . . . . . . . . . . . . . 1 1 Machines Sabotaged . | . . . . . . . . . . . . . . . . . . . . . . . . . . . . . . Garrisons Compromised . | . . . . . . . . . . . . . . . . . . . . . . . . . . . . . . Overloaded Fab Kills . | . . . . . . . . . . . . . . . . . . . . . . . . . . . . . . Fab Network Shutdowns . | . . . . . . . . . . . . . . . . . . . . . . . . . . . . . . Hacking | -11 -10 -10 -10 -9 -8 -8 -7 -7 -7 -7 -6 -6 -6 -6 -6 -6 -6 -5 -5 -5 -5 -5 -4 -4 -4 -4 -4 -4 -3 --------- Run | Scr Mat Min Exi Min Mat Sto Fac Low Low Dat Pro Fac Was Fac Low Low Zio Pro Fac Upp Upp War Pro Fac Ext Cet Arc Hub Res Machines Accessed 65 | . 8 . 1 1 9 12 10 . 1 4 . 10 . 5 . . . . 1 . . 1 . . . . . 1 1 Terminals 39 | . 7 . . . 7 9 7 . . . . 6 . 3 . . . . . . . . . . . . . . . Fabricators 5 | . . . . . . . 1 . . . . 1 . 2 . . . . 1 . . . . . . . . . . Repair Stations 6 | . . . . . 1 2 1 . . . . 2 . . . . . . . . . . . . . . . . . Recycling Units 1 | . 1 . . . . . . . . . . . . . . . . . . . . . . . . . . . . Scanalyzers . | . . . . . . . . . . . . . . . . . . . . . . . . . . . . . . Garrison Access 6 | . . . . . 1 1 1 . . . . 1 . . . . . . . . . . . . . . . 1 1 Total Hacks 181 | . 23 . 5 1 32 27 20 . 1 25 . 24 . 16 . . . . 3 . . 1 . . . . . 1 2 Successful 108 | . 16 . 5 1 21 15 8 . 1 25 . 7 . 6 . . . . 1 . . 1 . . . . . 1 . Failed 73 | . 7 . . . 11 12 12 . . . . 17 . 10 . . . . 2 . . . . . . . . . 2 Catastrophic 12 | . . . . . . 2 5 . . . . 3 . 2 . . . . . . . . . . . . . . . Database Lockouts . | . . . . . . . . . . . . . . . . . . . . . . . . . . . . . . Manual 191 | . 20 . . . 20 10 9 . . . . 10 . 8 . . . . 10 . . 1 . 29 33 13 . 18 10 Terminals 96 | . 22 . . . 24 17 12 . . . . 14 . 7 . . . . . . . . . . . . . . . Fabricators 19 | . . . . . . . 5 . . . . 2 . 9 . . . . 3 . . . . . . . . . . Repair Stations 19 | . . . . . 5 7 2 . . . . 5 . . . . . . . . . . . . . . . . . Recycling Units 1 | . 1 . . . . . . . . . . . . . . . . . . . . . . . . . . . . Scanalyzers . | . . . . . . . . . . . . . . . . . . . . . . . . . . . . . . Garrison Access 13 | . . . . . 3 3 1 . . . . 3 . . . . . . . . . . . . . . . 1 2 Terminal Hacks 61 | . 8 . 5 1 9 7 3 . 1 25 . 1 . . . . . . . . . 1 . . . . . . . Record 17 | . . . 5 . . . . . 1 11 . . . . . . . . . . . . . . . . . . . Part Schematic 4 | . . . . . . . . . . 4 . . . . . . . . . . . . . . . . . . . Robot Schematic 7 | . . . . . . . . . . 7 . . . . . . . . . . . . . . . . . . . Robot Analysis 1 | . 1 . . . . . . . . . . . . . . . . . . . . . . . . . . . . Prototype ID Bank 3 | . . . . . . . . . . 3 . . . . . . . . . . . . . . . . . . . Open Door 6 | . . . . 1 . 4 . . . . . . . . . . . . . . . 1 . . . . . . . Branch Access Points 2 | . . . . . . . 1 . . . . 1 . . . . . . . . . . . . . . . . . Terminal Index 4 | . 1 . . . 1 1 1 . . . . . . . . . . . . . . . . . . . . . . Alert Level 7 | . 2 . . . 3 1 1 . . . . . . . . . . . . . . . . . . . . . . Unreport Threat 2 | . . . . . 1 1 . . . . . . . . . . . . . . . . . . . . . . . Hauler Manifests 3 | . 2 . . . 1 . . . . . . . . . . . . . . . . . . . . . . . . Zone Layout 5 | . 2 . . . 3 . . . . . . . . . . . . . . . . . . . . . . . . Fabricator Hacks 6 | . . . . . . . 1 . . . . 1 . 3 . . . . 1 . . . . . . . . . . Load Schematic 4 | . . . . . . . . . . . . 1 . 2 . . . . 1 . . . . . . . . . . Build 2 | . . . . . . . 1 . . . . . . 1 . . . . . . . . . . . . . . . Repair Station Hacks 13 | . . . . . 4 5 2 . . . . 2 . . . . . . . . . . . . . . . . . Scan Component 7 | . . . . . 2 3 1 . . . . 1 . . . . . . . . . . . . . . . . . Repair 6 | . . . . . 2 2 1 . . . . 1 . . . . . . . . . . . . . . . . . Recycling Unit Hacks . | . . . . . . . . . . . . . . . . . . . . . . . . . . . . . . Scanalyzer . | . . . . . . . . . . . . . . . . . . . . . . . . . . . . . . Garrison Access Hacks 3 | . . . . . 1 . . . . . . 1 . . . . . . . . . . . . . . . 1 . Seal Access 3 | . . . . . 1 . . . . . . 1 . . . . . . . . . . . . . . . 1 . Unauthorized Hacks 25 | . 8 . . . 7 3 2 . . . . 2 . 3 . . . . . . . . . . . . . . . Terminals 22 | . 7 . . . 7 3 1 . . . . 2 . 2 . . . . . . . . . . . . . . . Track 1 | . . . . . 1 . . . . . . . . . . . . . . . . . . . . . . . . Botnet 21 | . 7 . . . 6 3 1 . . . . 2 . 2 . . . . . . . . . . . . . . . Fabricators 2 | . . . . . . . 1 . . . . . . 1 . . . . . . . . . . . . . . . Prioritize 2 | . . . . . . . 1 . . . . . . 1 . . . . . . . . . . . . . . . Repair Stations . | . . . . . . . . . . . . . . . . . . . . . . . . . . . . . . Recycling Units 1 | . 1 . . . . . . . . . . . . . . . . . . . . . . . . . . . . Tunnel 1 | . 1 . . . . . . . . . . . . . . . . . . . . . . . . . . . . Scanalyzers . | . . . . . . . . . . . . . . . . . . . . . . . . . . . . . . Garrison Access . | . . . . . . . . . . . . . . . . . . . . . . . . . . . . . . Data Cores Recovered . | . . . . . . . . . . . . . . . . . . . . . . . . . . . . . . Used . | . . . . . . . . . . . . . . . . . . . . . . . . . . . . . . Hacking Detections 51 | . 7 . . . 7 10 10 . . . . 10 . 5 . . . . 1 . . . . . . . . . 1 Full Trace Events 5 | . . . . . . . 2 . . . . 1 . 1 . . . . . . . . . . . . . . 1 Feedback Events . | . . . . . . . . . . . . . . . . . . . . . . . . . . . . . . Feedback Blocked . | . . . . . . . . . . . . . . . . . . . . . . . . . . . . . . Robot Schematics Acquired 7 | . . . . . . . . . . 7 . . . . . . . . . . . . . . . . . . . Robots Built 3 | . . . . . . . 3 . . . . . . . . . . . . . . . . . . . . . . Matter 252 | . . . . . . . 252 . . . . . . . . . . . . . . . . . . . . . . Time 134 | . . . . . . . 134 . . . . . . . . . . . . . . . . . . . . . . Total Robot Build Rating 12 | . . . . . . . 12 . . . . . . . . . . . . . . . . . . . . . . Part Schematics Acquired 48 | . . . . . . . . . . 4 . . . . . . . . . . . . . 12 8 24 . . . Parts Built 1 | . . . . . . . . . . . . . . 1 . . . . . . . . . . . . . . . Matter 384 | . . . . . . . . . . . . . . 384 . . . . . . . . . . . . . . . Time 204 | . . . . . . . . . . . . . . 204 . . . . . . . . . . . . . . . Total Part Build Rating 8 | . . . . . . . . . . . . . . 8 . . . . . . . . . . . . . . . Parts Repaired 6 | . . . . . 2 2 1 . . . . 1 . . . . . . . . . . . . . . . . . Time 234 | . . . . . 76 98 38 . . . . 22 . . . . . . . . . . . . . . . . . Parts Recycled . | . . . . . . . . . . . . . . . . . . . . . . . . . . . . . . Recycled Matter . | . . . . . . . . . . . . . . . . . . . . . . . . . . . . . . Retrieved Matter . | . . . . . . . . . . . . . . . . . . . . . . . . . . . . . . Retrieved Components . | . . . . . . . . . . . . . . . . . . . . . . . . . . . . . . Parts Scanalyzed . | . . . . . . . . . . . . . . . . . . . . . . . . . . . . . . Part Schematics Acquired . | . . . . . . . . . . . . . . . . . . . . . . . . . . . . . . Parts Damaged . | . . . . . . . . . . . . . . . . . . . . . . . . . . . . . . Bothacking | -11 -10 -10 -10 -9 -8 -8 -7 -7 -7 -7 -6 -6 -6 -6 -6 -6 -6 -5 -5 -5 -5 -5 -4 -4 -4 -4 -4 -4 -3 ------------ Run | Scr Mat Min Exi Min Mat Sto Fac Low Low Dat Pro Fac Was Fac Low Low Zio Pro Fac Upp Upp War Pro Fac Ext Cet Arc Hub Res Used RIF Installer . | . . . . . . . . . . . . . . . . . . . . . . . . . . . . . . Robots Hacked . | . . . . . . . . . . . . . . . . . . . . . . . . . . . . . . Non-combat . | . . . . . . . . . . . . . . . . . . . . . . . . . . . . . . Combat . | . . . . . . . . . . . . . . . . . . . . . . . . . . . . . . Robot Hacks Applied . | . . . . . . . . . . . . . . . . . . . . . . . . . . . . . . Relay Couplers Released 1 | . . . . . . . . . . . . . . . . . . . . . . . . . . . . . 1 Machine Destruction 1 | . . . . . . . . . . . . . . . . . . . . . . . . . . . . . 1 Robots Rewired 10 | . . . . . . . . . . . . . . . . . . . . . 2 . . . 8 . . . . Allies Hacked 3 | . . . . . . . . . . . . . . . . . . . . . . . . . 3 . . . . Hacks Repelled . | . . . . . . . . . . . . . . . . . . . . . . . . . . . . . . Allies | -11 -10 -10 -10 -9 -8 -8 -7 -7 -7 -7 -6 -6 -6 -6 -6 -6 -6 -5 -5 -5 -5 -5 -4 -4 -4 -4 -4 -4 -3 -------- Run | Scr Mat Min Exi Min Mat Sto Fac Low Low Dat Pro Fac Was Fac Low Low Zio Pro Fac Upp Upp War Pro Fac Ext Cet Arc Hub Res Total Allies 74 | . . . . 2 . . 3 . . . . . . . . . 4 . 3 . 2 . . 8 29 3 . 9 11 Largest Group 24 | . . . . 2 2 . 3 1 . . . . . . . . 4 4 3 . 2 . . 7 24 13 7 15 8 Highest-Rated Group 1272 | . . . . 46 46 . 90 30 . . . . . . . . 155 155 210 . 59 . . 401 1272 779 424 832 746 Highest-Rated Ally 180 | . . . . 31 31 . 30 30 . . . . . . . . 40 40 70 . 30 . . 103 180 180 180 180 180 Zionite Dispatches 18 | . . . . . . . . . . . . . . . . . . . 1 . . . . 3 6 1 . 3 4 Heavy 3 | . . . . . . . . . . . . . . . . . . . . . . . . 1 . . . . 2 Light 2 | . . . . . . . . . . . . . . . . . . . 1 . . . . . . . . . 1 Fire 6 | . . . . . . . . . . . . . . . . . . . . . . . . 2 1 1 . 1 1 Hacker 2 | . . . . . . . . . . . . . . . . . . . . . . . . . 1 . . 1 . Hero 1 | . . . . . . . . . . . . . . . . . . . . . . . . . 1 . . . . Offense Resupply 1 | . . . . . . . . . . . . . . . . . . . . . . . . . . . . 1 . Defense Resupply 2 | . . . . . . . . . . . . . . . . . . . . . . . . . 2 . . . . Heavy Resupply 1 | . . . . . . . . . . . . . . . . . . . . . . . . . 1 . . . . Total Orders 16 | . . . . . . . 5 1 1 . 1 1 1 1 . . . . . . . . . . 4 . . 1 . STAY 2 | . . . . . . . . . . . . . . . . . . . . . . . . . 2 . . . . DROP 3 | . . . . . . . . . . . . . . . . . . . . . . . . . 2 . . 1 . EXPLORE 2 | . . . . . . . 2 . . . . . . . . . . . . . . . . . . . . . . RETURN 9 | . . . . . . . 3 1 1 . 1 1 1 1 . . . . . . . . . . . . . . . Ally Attacks 581 | . . . . 12 1 . 15 . . . . . . . . . . 18 58 . 13 . . 11 123 64 10 64 192 Total Damage 18108 | . . . . 148 20 . 400 . . . . . . . . . . 421 1067 . 226 . . 376 3975 1483 295 1743 7954 Kills 120 | . . . . 4 . . 4 . . . . . . . . . . 2 7 . . . . 4 21 13 4 19 42 Allies Corrupted 7 | . . . . . . . . 1 . . . 1 . . . . . . . . . . . . 1 . . 1 3 Allies Melted 1 | . . . . . . . . 1 . . . . . . . . . . . . . . . . . . . . . Intel | -11 -10 -10 -10 -9 -8 -8 -7 -7 -7 -7 -6 -6 -6 -6 -6 -6 -6 -5 -5 -5 -5 -5 -4 -4 -4 -4 -4 -4 -3 ------- Run | Scr Mat Min Exi Min Mat Sto Fac Low Low Dat Pro Fac Was Fac Low Low Zio Pro Fac Upp Upp War Pro Fac Ext Cet Arc Hub Res Robot Analysis Total 1 | . 1 . . . . . . . . . . . . . . . . . . . . . . . . . . . . Derelict Logs Recovered 12 | . . 1 . 1 . . . . 1 . 2 . . . . . . 2 . 2 2 . 1 . . . . . . Drone Launches 16 | . . . . . . . 3 4 1 . 1 5 1 1 . . . . . . . . . . . . . . . Drone Recoveries 14 | . . . . . . . 3 2 1 . 1 5 1 1 . . . . . . . . . . . . . . . Zionite Intel Received 11 | . . . . . . . . . . . . . . . . . . . 1 . . . . 2 4 2 . 2 . Branch Access 2 | . . . . . . . . . . . . . . . . . . . 1 . . . . 1 . . . . . Emergency Access 1 | . . . . . . . . . . . . . . . . . . . . . . . . . . . . 1 . Component Stockpiles 1 | . . . . . . . . . . . . . . . . . . . . . . . . . 1 . . . . Component Schematics 2 | . . . . . . . . . . . . . . . . . . . . . . . . 1 . 1 . . . Prototype Schematics 2 | . . . . . . . . . . . . . . . . . . . . . . . . . 1 1 . . . Active Terminals 1 | . . . . . . . . . . . . . . . . . . . . . . . . . 1 . . . . Active Garrisons 1 | . . . . . . . . . . . . . . . . . . . . . . . . . . . . 1 . Depthwide Sectors/0 1 | . . . . . . . . . . . . . . . . . . . . . . . . . 1 . . . . Exploration | -11 -10 -10 -10 -9 -8 -8 -7 -7 -7 -7 -6 -6 -6 -6 -6 -6 -6 -5 -5 -5 -5 -5 -4 -4 -4 -4 -4 -4 -3 ------------- Run | Scr Mat Min Exi Min Mat Sto Fac Low Low Dat Pro Fac Was Fac Low Low Zio Pro Fac Upp Upp War Pro Fac Ext Cet Arc Hub Res Turns Passed 22793 | 76 1009 327 312 824 2288 1337 2201 878 610 114 540 1005 175 535 526 328 1106 797 1195 479 780 783 226 1247 1094 306 85 405 1205 Spaces Moved 12462 | 53 531 141 156 383 988 603 935 408 286 83 243 521 116 221 405 242 855 527 710 330 511 545 189 520 672 169 41 280 798 Core 31 | 31 . . . . . . . . . . . . . . . . . . . . . . . . . . . . . Treads . | . . . . . . . . . . . . . . . . . . . . . . . . . . . . . . Legs 12431 | 22 531 141 156 383 988 603 935 408 286 83 243 521 116 221 405 242 855 527 710 330 511 545 189 520 672 169 41 280 798 Wheels . | . . . . . . . . . . . . . . . . . . . . . . . . . . . . . . Hover . | . . . . . . . . . . . . . . . . . . . . . . . . . . . . . . Flight . | . . . . . . . . . . . . . . . . . . . . . . . . . . . . . . Fastest Speed 50 | 50 120 200 200 200 120 120 120 120 200 120 200 120 120 200 120 120 120 120 120 120 120 105 105 105 102 102 102 102 100 Average Speed 139 | 124 139 200 200 200 176 123 170 197 200 129 200 161 125 200 123 124 120 120 120 120 120 114 105 105 103 102 102 102 100 Slowest Speed 440 | 200 200 200 200 200 200 205 440 200 200 200 200 200 200 200 200 200 120 120 120 120 120 200 105 105 105 102 102 102 200 Overloaded Moves . | . . . . . . . . . . . . . . . . . . . . . . . . . . . . . . Propulsion Burnouts . | . . . . . . . . . . . . . . . . . . . . . . . . . . . . . . Robots Hopped . | . . . . . . . . . . . . . . . . . . . . . . . . . . . . . . Cave-ins Triggered 1 | . . . . . . . . . . . . . 1 . . . . . . . . . . . . . . . . Exploration Rate (%) 52 | 4 78 30 54 83 84 92 29 61 44 69 41 19 86 8 65 43 84 66 20 58 67 57 35 8 85 61 60 37 34 Regions Visited 29 Branch Regions 20 Pre-discovered Areas 12 | . 1 . 1 . . . . . . 1 . . . . . . . . . . . . . . 9 . . . . Known Exits Taken 21 | . . . . . . 1 1 1 1 1 1 . . 1 1 1 1 1 1 1 1 1 1 1 1 1 1 1 . Unknown Exits Taken 6 | 1 1 1 1 1 1 . . . . . . . . . . . . . . . . . . . . . . . . Scrap Searched 25 | . . . . 2 . . . 5 1 . . . . . 5 2 2 2 . 2 3 . 1 . . . . . . Spaces Dug 176 | . . . . . 2 36 . 6 1 . 13 8 16 . . . . 7 9 17 24 14 8 3 . . . 4 8 Terrain Destroyed 527 | . 16 . . . 10 51 77 7 40 . 38 82 16 3 . 4 . 9 35 20 28 15 12 8 1 . . 17 38 Melee 2 | . . . . . 2 . . . . . . . . . . . . . . . . . . . . . . . . Projectile 220 | . . . . . . . 1 7 4 . 14 19 16 3 . 4 . 9 21 20 28 15 12 8 1 . . 17 21 AOE 305 | . 16 . . . 8 51 76 . 36 . 24 63 . . . . . . 14 . . . . . . . . . 17 Terrain Rammed . | . . . . . . . . . . . . . . . . . . . . . . . . . . . . . . Walls Destroyed . | . . . . . . . . . . . . . . . . . . . . . . . . . . . . . . Machines Disabled . | . . . . . . . . . . . . . . . . . . . . . . . . . . . . . . Actions | -11 -10 -10 -10 -9 -8 -8 -7 -7 -7 -7 -6 -6 -6 -6 -6 -6 -6 -5 -5 -5 -5 -5 -4 -4 -4 -4 -4 -4 -3 --------- Run | Scr Mat Min Exi Min Mat Sto Fac Low Low Dat Pro Fac Was Fac Low Low Zio Pro Fac Upp Upp War Pro Fac Ext Cet Arc Hub Res Total 16595 | 60 689 173 158 431 1350 992 1364 455 307 90 269 634 128 278 423 260 937 656 958 387 625 684 204 1190 1054 261 84 376 1118 Wait 2678 | . 57 23 . 31 158 219 251 23 11 . 12 70 1 25 8 10 63 97 120 36 20 107 4 619 299 52 44 85 233 Move 12434 | 52 530 140 155 382 987 602 934 407 285 82 242 521 115 220 404 241 854 526 709 329 510 544 188 519 671 168 40 279 798 Hop . | . . . . . . . . . . . . . . . . . . . . . . . . . . . . . . Pick Up 142 | 2 15 1 . 4 27 12 20 3 1 . . 3 . 4 3 1 3 2 12 . 4 2 . 6 5 4 . . 8 Fast Attach 101 | 6 2 . . 2 9 8 13 2 . 4 . 1 . 1 2 . 6 9 13 . . 4 . . 6 3 . . 10 Attach 53 | . 1 . . 1 4 4 14 2 . . . 4 1 4 . 1 1 . 6 . . . . 3 1 . . 1 5 Detach 6 | . . . . . . . 1 . . . . . 2 1 . 1 1 . . . . . . . . . . . . Swap 160 | . 9 . 1 . 21 12 21 4 2 . 2 7 . 6 . 2 . . 17 2 14 3 . 14 6 9 . 1 7 Drop 188 | . 8 . 2 4 32 19 21 3 1 4 . 4 . 1 3 1 9 6 21 . 4 6 . 6 11 7 . 1 14 Fire 707 | . 60 5 . 5 104 95 84 11 7 . 12 23 9 14 3 3 . 16 59 20 47 18 12 23 8 18 . 9 42 Melee 2 | . . . . . 2 . . . . . . . . . . . . . . . . . . . . . . . . Ram . | . . . . . . . . . . . . . . . . . . . . . . . . . . . . . . Kick 37 | . 7 4 . 2 6 6 5 . . . 1 1 . 2 . . . . 1 . . . . . 1 . . . 1 Crush . | . . . . . . . . . . . . . . . . . . . . . . . . . . . . . . Escape Stasis 22 | . . . . . . 15 . . . . . . . . . . . . . . . . . . 7 . . . . Rewire 65 | . . . . . . . . . . . . . . . . . . . . . 26 . . . 39 . . . . Trap . | . . . . . . . . . . . . . . . . . . . . . . . . . . . . . . Miscellaneous . | . . . . . . . . . . . . . . . . . . . . . . . . . . . . . . Route ------- -11/Scrapyard -10/Materials (discovered 3 exits: [*Mat x2] / [*Min]) -10/Mines -10/Exiles (discovered 2 exits: *Min x2) -9/Mines -8/Materials (discovered 4 exits: *Fac x2 / *Sto x2) -8/Storage (discovered 2 exits: *Fac / Rec) -7/Factory (discovered 2 exits: *Low x2) -7/Lower Caves -7/Lower Caves -7/Data Miner -6/Proximity Caves -6/Factory (discovered 3 exits: Fac / Low x2) -6/Waste -6/Factory -6/Lower Caves -6/Lower Caves -6/Zion -5/Proximity Caves -5/Factory (discovered 3 exits: Fac / *Upp x2) -5/Upper Caves -5/Upper Caves -5/Warlord -4/Proximity Caves -4/Factory (discovered 7 exits: Res x2 / *Upp x2 / *Ext x2 / Arm) -4/Extension (discovered 2 exits: *Res / *Cet) -4/Cetus -4/Archives -4/Hub_04(d) -3/Research History --------- Turn | Location | Event 56 | -11/Scrapyard | Discovered new exit (range 15) 77 | -11/Scrapyard | Entered Materials 316 | -10/Materials | Build established: Mutant 532 | -10/Materials | Discovered new exit (range 9) 682 | -10/Materials | Discovered new exit (range 14) 790 | -10/Materials | Discovered new exit (range 14) 1086 | -10/Materials | Entered Mines 1152 | -10/Mines | Learned location of 1 exit from Materials 1163 | -10/Mines | Received a Rocket Launcher from a helpful Derelict 1329 | -10/Mines | Discovered new exit (range 6) 1340 | -10/Mines | Assembled infested the area 1413 | -10/Mines | Entered Exiles 1445 | -10/Exiles | Discovered new exit (range 15) 1467 | -10/Exiles | Met 8R-AWN 1495 | -10/Exiles | Met EX-HEX 1599 | -10/Exiles | Met EX-DEC 1637 | -10/Exiles | Learned location of Zion (-6) 1703 | -10/Exiles | Discovered new exit (range 14) 1725 | -10/Exiles | Entered Mines 1732 | -9/Mines | Found the Drone Emporium 1740 | -9/Mines | Found Prototype Device 1740 | -9/Mines | Identified Sensor Drone Bay 1953 | -9/Mines | A weapon hastily lodged in a ceiling crevice suddenly fell to the ground 2287 | -9/Mines | Discovered new exit (range 6) 2373 | -9/Mines | Excavation squad dispatched 2373 | -9/Mines | A large section of the Mines collapsed 2549 | -9/Mines | Entered Materials 2549 | -8/Materials | Accompanied by 2 allies 2549 | -8/Materials | Evolved 4 slots: Propulsion x1, Utility x2, Weapon x1 2550 | -8/Materials | Identified exit to Factory 2554 | -8/Materials | Led the pair of lost Derelicts to an unsafe place 2691 | -8/Materials | Discovered new exit (range 15) 2783 | -8/Materials | Garrison activated, responded to threat 2856 | -8/Materials | Build established: Gunner 2962 | -8/Materials | Discovered exit to Factory (range 13) 3883 | -8/Materials | Repaired Minigun 3922 | -8/Materials | Repaired Minigun 4101 | -8/Materials | Discovered new exit (range 11) 4837 | -8/Materials | Entered Storage 4838 | -8/Storage | Identified exit to Recycling 4983 | -8/Storage | Build established: Tank 5251 | -8/Storage | Garrison activated, responded to threat 5382 | -8/Storage | Repaired Adv. Beam Rifle 5411 | -8/Storage | Garrison activated, responded to threat 5521 | -8/Storage | Core integrity fell below 50% 5622 | -8/Storage | Repaired Carbon-fiber Leg 5691 | -8/Storage | Discovered exit to Factory (range 6) 5793 | -8/Storage | Found Prototype Processor 5928 | -8/Storage | Build established: Scavenger-Tank 6037 | -8/Storage | First assault squad dispatched 6174 | -8/Storage | Entered Factory 6174 | -7/Factory | Evolved 2 slots: Utility x2 6461 | -7/Factory | Repaired Imp. Heat Sink 6463 | -7/Factory | Build established: Scavenger-Skirmisher 7017 | -7/Factory | Build established: Scavenger-Tank 7044 | -7/Factory | Identified exit to Lower Caves 7460 | -7/Factory | Cargo convoy interrupted 7529 | -7/Factory | System corruption reached 10% 7583 | -7/Factory | Lost 7 parts (2n1u4w) 7604 | -7/Factory | Found Prototype Processor 7604 | -7/Factory | Identified Exp. Targeting Computer (x2) 7620 | -7/Factory | Found Exp. Targeting Computer 7838 | -7/Factory | Fabricated L-41 Fighter (x3) 8375 | -7/Factory | Entered Lower Caves 8375 | -7/Lower Caves | Accompanied by 1 ally 8529 | -7/Lower Caves | Encountered a Warlord checkpoint 8776 | -7/Lower Caves | Build established: Scavenger-Mutant 8902 | -7/Lower Caves | Found Alien Artifact 8902 | -7/Lower Caves | Identified Core Expander 8902 | -7/Lower Caves | Installed Core Expander, added new Weapon slot 9107 | -7/Lower Caves | Spotted B-75 Beast 9126 | -7/Lower Caves | Destroyed B-75 Beast 9196 | -7/Lower Caves | Discovered new exit (range 10) 9229 | -7/Lower Caves | Identified exit to Lower Caves 9253 | -7/Lower Caves | Entered another Lower Caves area 9253 | -7/Lower Caves | Accompanied by 1 ally 9441 | -7/Lower Caves | Build established: Scavenger-Gunner 9761 | -7/Lower Caves | Learned Factory emergency access door positions 9841 | -7/Lower Caves | Discovered new exit (range 12) 9861 | -7/Lower Caves | Identified exit to Data Miner 9863 | -7/Lower Caves | Entered Data Miner 9863 | -7/Data Miner | Accompanied by 1 ally 9863 | -7/Data Miner | Discovered new exit (range 6) 9871 | -7/Data Miner | Identified exit to Proximity Caves 9892 | -7/Data Miner | Met Data Miner 9916 | -7/Data Miner | Learned location of Section 7 (-2) 9916 | -7/Data Miner | Acquired the access code to Warlord's prototype stash 9933 | -7/Data Miner | Received God Mode back door access code from Data Miner 9977 | -7/Data Miner | Entered Proximity Caves 9977 | -6/Proximity Caves | Accompanied by 1 ally 10012 | -6/Proximity Caves | Learned location of 1 exit from Factory 10166 | -6/Proximity Caves | Build established: Scavenger-Mutant 10399 | -6/Proximity Caves | Learned Factory terminal intel 10485 | -6/Proximity Caves | Discovered new exit (range 15) 10513 | -6/Proximity Caves | Identified exit to Factory 10517 | -6/Proximity Caves | Entered Factory 10517 | -6/Factory | Accompanied by 1 ally 10517 | -6/Factory | Evolved 2 slots: Propulsion x1, Utility x1 10518 | -6/Factory | Identified exit to Factory 10520 | -6/Factory | Loaded intel: 20 terminal locations 10724 | -6/Factory | Repaired Imp. Carbon-fiber Leg 11156 | -6/Factory | Build established: Scavenger-Gunner 11466 | -6/Factory | Garrison activated, responded to threat 11497 | -6/Factory | Identified exit to Lower Caves 11522 | -6/Factory | Sucked down chute 11522 | -6/Factory | Entered Waste 11537 | -6/Waste | EMP discharged 11539 | -6/Waste | Destroyed 7 combat bots 11545 | -6/Waste | Lost 3 parts (1p1n1w) 11552 | -6/Waste | Spotted C-40 Crusher 11555 | -6/Waste | Spotted C-40 Crusher 11605 | -6/Waste | Crushed by falling debris 11605 | -6/Waste | System corruption reached 10% 11611 | -6/Waste | Spotted C-40 Crusher 11615 | -6/Waste | Spotted C-40 Crusher 11637 | -6/Waste | EMP discharged 11656 | -6/Waste | Spotted C-40 Crusher 11679 | -6/Waste | Discovered new exit (range 16) 11696 | -6/Waste | Identified exit to Factory 11697 | -6/Waste | Entered Factory 11774 | -6/Factory | Discovered exit to Lower Caves (range 16) 11997 | -6/Factory | Build established: Scavenger-Tank 12009 | -6/Factory | Fabricated Exp. Sensor Array? 12232 | -6/Factory | Entered Lower Caves 12233 | -6/Lower Caves | Encountered a Warlord checkpoint 12235 | -6/Lower Caves | Spotted B-75 Beast 12243 | -6/Lower Caves | Destroyed B-75 Beast 12520 | -6/Lower Caves | Build established: Scavenger-Skirmisher 12742 | -6/Lower Caves | Discovered new exit (range 12) 12756 | -6/Lower Caves | Identified exit to Lower Caves 12758 | -6/Lower Caves | Entered another Lower Caves area 12889 | -6/Lower Caves | Encountered a Warlord checkpoint 12954 | -6/Lower Caves | Spotted B-75 Beast 12987 | -6/Lower Caves | Destroyed B-75 Beast 13077 | -6/Lower Caves | Discovered new exit (range 4) 13085 | -6/Lower Caves | Identified exit to Zion 13086 | -6/Lower Caves | Entered Zion 13125 | -6/Zion | System corruption cleaned by Quarantine Array 13233 | -6/Zion | Given A8's code to call for help 13263 | -6/Zion | Given the Hacking Drone Bay 13275 | -6/Zion | Found Prototype Device 13391 | -6/Zion | Build established: Scavenger-Mutant 13486 | -6/Zion | Found Prototype Launcher 13486 | -6/Zion | Identified Rocket Array 13656 | -6/Zion | Found CR-A16's Pointy Stick 13846 | -6/Zion | Visited the Megawrench Repair Shop 13848 | -6/Zion | Megawrench repaired 15 parts 13902 | -6/Zion | Imprinted 13904 | -6/Zion | Declared Zion's savior 14117 | -6/Zion | Discovered new exit (range 9) 14135 | -6/Zion | Build established: Scavenger-Skirmisher 14144 | -6/Zion | Identified exit to Proximity Caves 14192 | -6/Zion | Entered Proximity Caves 14192 | -5/Proximity Caves | Accompanied by 4 allies 14769 | -5/Proximity Caves | Learned 4 Factory zone layouts 14905 | -5/Proximity Caves | Spotted B-75 Beast 14989 | -5/Proximity Caves | Entered Factory 14989 | -5/Factory | Evolved 2 slots: Power x1, Utility x1 14990 | -5/Factory | Identified exit to Factory 15263 | -5/Factory | Discovered new exit (range 15) 15616 | -5/Factory | Garrison activated, responded to threat 15652 | -5/Factory | Zion Light squad teleported in 15783 | -5/Factory | Incoming investigation squad redirected 15889 | -5/Factory | First assault squad dispatched 15915 | -5/Factory | Incoming assault squad redirected 15926 | -5/Factory | Retrieved Zion intel report: Branch Access 15926 | -5/Factory | Identified exit to Upper Caves 16046 | -5/Factory | Found Prototype Protection 16095 | -5/Factory | Found Prototype Protection 16184 | -5/Factory | Entered Upper Caves 16248 | -5/Upper Caves | Learned Factory security intel 16270 | -5/Upper Caves | Encountered a Warlord checkpoint 16451 | -5/Upper Caves | Identified exit to Upper Caves 16487 | -5/Upper Caves | Build established: Scavenger-Mutant 16663 | -5/Upper Caves | Entered another Upper Caves area 16780 | -5/Upper Caves | Encountered a Warlord checkpoint 17155 | -5/Upper Caves | Attracted the attention of an 0b10 outpost 17205 | -5/Upper Caves | Learned 12 Factory zone layouts 17377 | -5/Upper Caves | Discovered new exit (range 12) 17442 | -5/Upper Caves | Identified exit to Warlord 17443 | -5/Upper Caves | Entered Warlord 17477 | -5/Warlord | System corruption cleaned by Quarantine Array 17520 | -5/Warlord | System corruption cleaned by Quarantine Array 17756 | -5/Warlord | Rebuked by Warlord 17768 | -5/Warlord | Warlord's base attacked by MAIN.C 17770 | -5/Warlord | Opened Warlord's prototype stash 17788 | -5/Warlord | Found Prototype Processor 17793 | -5/Warlord | Found Prototype Device 17793 | -5/Warlord | Identified Exp. Cloaking Device 18118 | -5/Warlord | Warlord forces counterattacked 18182 | -5/Warlord | Opened side exit 18219 | -5/Warlord | Discovered new exit (range 9) 18225 | -5/Warlord | Identified exit to Proximity Caves 18226 | -5/Warlord | Entered Proximity Caves 18317 | -4/Proximity Caves | Learned Research emergency access door positions 18441 | -4/Proximity Caves | Discovered exit to Factory (range 11) 18452 | -4/Proximity Caves | Entered Factory 18452 | -4/Factory | Evolved 2 slots: Utility x2 18453 | -4/Factory | Identified exit to Upper Caves 18454 | -4/Factory | Identified exit to Research 18480 | -4/Factory | Identified Zio. Weapon Casing (x2) 18481 | -4/Factory | Identified Spectral Analyzer 18709 | -4/Factory | Retrieved Zion intel report: Branch Access 18709 | -4/Factory | Identified exit to Extension 18709 | -4/Factory | Identified exit to Armory 18710 | -4/Factory | Zion Fire squad teleported in 18737 | -4/Factory | Retrieved Zion intel report: Component Schematics 18899 | -4/Factory | Build established: Scavenger-Skirmisher 19375 | -4/Factory | Zion Heavy squad teleported in 19679 | -4/Factory | Zion Fire squad teleported in 19699 | -4/Factory | Entered Extension 19699 | -4/Extension | Accompanied by 7 allies 19728 | -4/Extension | Rescued a captive Derelict 19729 | -4/Extension | Zion hero teleported in (7V-RTL) 19770 | -4/Extension | Rescued a captive Derelict 19770 | -4/Extension | Retrieved Zion intel report: Active Terminals 19771 | -4/Extension | Zion Hacker squad teleported in 19884 | -4/Extension | Zion Heavy Resupply teleported in 20183 | -4/Extension | P-70 Sage assimilated allied 92-O8Y(i) 20188 | -4/Extension | Spotted B-86 Titan 20197 | -4/Extension | Spotted B-86 Titan 20198 | -4/Extension | Allies destroyed B-86 Titan 20214 | -4/Extension | Destroyed B-86 Titan 20279 | -4/Extension | Rescued a captive Derelict 20280 | -4/Extension | Zion Defense Resupply teleported in 20280 | -4/Extension | Rescued a captive Derelict 20286 | -4/Extension | Found Unknown Protection 20286 | -4/Extension | Identified Imp. Powered Armor 20438 | -4/Extension | Rescued a captive Derelict 20438 | -4/Extension | Retrieved Zion intel report: Prototype Schematics 20465 | -4/Extension | Rescued A7 20465 | -4/Extension | Retrieved Zion intel report: Depthwide Sectors/0 20536 | -4/Extension | Rescued a captive Derelict 20537 | -4/Extension | Zion Fire squad teleported in 20549 | -4/Extension | Rescued a captive Derelict 20549 | -4/Extension | Rescued a captive Derelict 20550 | -4/Extension | Zion Defense Resupply teleported in 20629 | -4/Extension | Rescued a captive Derelict 20636 | -4/Extension | Rescued a captive Derelict 20636 | -4/Extension | Retrieved Zion intel report: Component Stockpiles 20657 | -4/Extension | Discovered exit to Research (range 10) 20658 | -4/Extension | Discovered new exit (range 6) 20670 | -4/Extension | Identified exit to Cetus 20780 | -4/Extension | Disrupted transfer network 20793 | -4/Extension | Entered Cetus 20793 | -4/Cetus | Accompanied by 11 allies (incl. 7V-RTL, A7) 20798 | -4/Cetus | Acquired a Cetus Manufacturing Module code from A7 20818 | -4/Cetus | Spotted Cetus Guard 20818 | -4/Cetus | Spotted Cetus Guard 20819 | -4/Cetus | Spotted Cetus Guard 20819 | -4/Cetus | Spotted Cetus Guard 20828 | -4/Cetus | Allies destroyed Cetus Guard 20830 | -4/Cetus | Allies destroyed Cetus Guard 20831 | -4/Cetus | Allies destroyed Cetus Guard 20836 | -4/Cetus | Allies destroyed Cetus Guard 20885 | -4/Cetus | Zion Fire squad teleported in 20911 | -4/Cetus | Retrieved Zion intel report: Prototype Schematics 20915 | -4/Cetus | Retrieved Zion intel report: Component Schematics 20981 | -4/Cetus | Destroyed A7 20985 | -4/Cetus | Extracted ID and sensor layout for unrecognized location from A7's data core 20993 | -4/Cetus | Found Prototype Protection 20994 | -4/Cetus | Identified Med. Regenerative Plating 21067 | -4/Cetus | Discovered new exit (range 16) 21081 | -4/Cetus | Identified exit to Archives 21099 | -4/Cetus | Entered Archives 21099 | -4/Archives | Accompanied by 7 allies (7V-RTL) 21151 | -4/Archives | Discovered new exit (range 15) 21164 | -4/Archives | Identified exit to Hub_04(d) 21184 | -4/Archives | Entered Hub_04(d) 21184 | -4/Hub_04(d) | Accompanied by 7 allies (7V-RTL) 21195 | -4/Hub_04(d) | Zion Hacker squad teleported in 21223 | -4/Hub_04(d) | Zion Offense Resupply teleported in 21247 | -4/Hub_04(d) | Zion Fire squad teleported in 21327 | -4/Hub_04(d) | Retrieved Zion intel report: Active Garrisons 21337 | -4/Hub_04(d) | Garrison activated, responded to threat 21439 | -4/Hub_04(d) | Retrieved Zion intel report: Emergency Access 21525 | -4/Hub_04(d) | Discovered exit to Research (range 15) 21589 | -4/Hub_04(d) | Entered Research 21589 | -3/Research | Accompanied by 7 allies (7V-RTL) 21589 | -3/Research | Evolved 2 slots: Utility x2 21713 | -3/Research | Zion Heavy squad teleported in 21839 | -3/Research | Zion Heavy squad teleported in 21866 | -3/Research | Zion Fire squad teleported in 22021 | -3/Research | Spotted B-86 Titan 22025 | -3/Research | Allies destroyed B-86 Titan 22178 | -3/Research | Zion Light squad teleported in 22282 | -3/Research | Build established: Scavenger-Gunner 22339 | -3/Research | First assault squad dispatched 22360 | -3/Research | Incoming assault squad redirected 22484 | -3/Research | Found Zio. Weapon Casing 22615 | -3/Research | Incoming assault squad redirected 22630 | -3/Research | High security lockdown imminent 22635 | -3/Research | Found Corrupted Prototype Device 22635 | -3/Research | Identified 7V-RTL's Ultimate Field 22636 | -3/Research | System corruption reached 10% 22642 | -3/Research | Found Zio. Weapon Casing 22710 | -3/Research | High security lockdown engaged 22794 | -3/Research | Self-destructed Last Messages --------------- 22782_ Acquired Med. Regenerative Plating. 22783_ G-67 Veteran IFF system glitched. 22785_ G-67 Veteran destroyed. 22787_ 9V1YGLQPK|C|DRIE5NT 22787_ Chain reaction triggered in Corrupted Lgt. Antimatter Reactor. 22787_ Lgt. Antimatter Reactor fried. 22787_ G-67 Veteran destroyed. 22787_ Adv. Heat Sink melted. 22787_ Electrolaser fried. 22787_ G-67 Veteran destroyed. 22790_ C-30 ARC bursts open, deploying its payload. 22790_ G-73 Enforcer unfolds itself. 22790_ B-74 Champion unfolds itself. 22790_ G-67 Veteran unfolds itself. 22790_ E-15 Imp unfolds itself. 22792_ K-01 Serf distress signal jammed. 22792_ Lrn. Sensor Array blown off. 22792_ Med. Regenerative Plating blown off. 22792_ Zio. Composite Leg II blown off. 22792_ E-15 Imp destroyed. Map ----- +----------------------------------------------------+ | ??????????????????????????# """ # #? | | ??????????????????????????# # #? | | ??????????????????????????# ^ ! # #? | | ??????????????????????????# ^ ############ | | ??????????????????????????# ! | | ??????????????????????????# | | ??????????????????????????# | | ??????????????????????????# | | ??????????????????????????##################+### | | ?????????????? ??????????????????????????? ?# | | ?????????????? ?????????????????????????? ?# | | ??????????????"" ??? ??????????????????? # | | ??????????????"" !??? ??????????????????? # | | ??????????????T" ?? ?????????????????? # | | ??????????????"" ###;######################### | | ??????????? "" w | | ??????????? | | ??????????# k | | ??????????? % | | ?????????##+#?????#### ggg###################### | | ?????????# ??????#g #?? #????????????# | | ?????????? ????# b #? #????????????# | | ??????????? """ ### # ?????????????# | | ??????????? """ + /%=# """ ??????????????# | | ??????????? """ ### ===/ """??????????"""??# | | ?????????? ????# !!@#??"""??????????"""??? | | ?????????# ??????#/% #??"""??????????"""??? | | ?????????# =????????#= #??"""??????????"""??? | | ?????????#/?????????;;%% #??"""??+??"?"??"""??? | | ?????????????????? %=[ #??"""?????"Y"??"""???## | | ????????????????? !%[ #??????????"""??"""????? | | ??????????????? =%= /??????????????????????? | | ?????????????? == #??????????????????????? | | ?????????????## ##??????????????????????? | | ??????????????# # ????????????????????????? | | ??????????????# # ????????????????????????? | | ??????????????# ?# ????????????????????????? | | ??????????????# ??# ????????????????????????? | | ??????????????# ???# ????????????????????????? | | ???????????????????? ????????????????????????? | | ??????????????????????? ????????????????????????? | | ?????????????????????????????????????????????????? | | ???????????????????????+?????????????????????????? | | ?????????????????????????????????????????????????? | | ?????????????????????????????????????????????????? | | ?????????????????????????????????????????????????? | | ?????????????????????????????????????????????????? | | ?????????????????????????????????????????????????? | | ?????????????????????????????????????????????????? | | ?????????????????+???????????????????????????????? | +----------------------------------------------------+ Best States ------------- Heat Dissipation 127 Energy Generation 41 Energy Capacity 740 Matter Stores 300 Matter Capacity 300 Sight Range 16 Robot Scan Range 20 Terrain Scan Density 10 Jamming Range 16 Armor Coverage 450 Weapon Shielding 100 Weapon Cycling 15 Evasion (%) 55 Targeting Accuracy 12 Armor Integrity Analysis 35 Particle Charging 25 Item Schematics ----------------- Combat Drone Bay | -7/Data Miner | Free Lgt. Regenerative Plating | -7/Data Miner | Free Exp. Sensor Array | -7/Data Miner | Free Kinetic Spear | -7/Data Miner | Free Matter Filter | -4/Factory | Z-intel Imp. Targeting Computer | -4/Factory | Z-intel Imp. Melee Analysis Suite | -4/Factory | Z-intel Shock Absorption System | -4/Factory | Z-intel Imp. Recalibrator | -4/Factory | Z-intel Centrium Wheel | -4/Factory | Z-intel Imp. Maneuvering Thrusters | -4/Factory | Z-intel Lyr. Light Armor Plating | -4/Factory | Z-intel Enh. Optical Array | -4/Factory | Z-intel Field Propulsion Array | -4/Factory | Z-intel Adv. System Shield | -4/Factory | Z-intel Imp. Arc Projector | -4/Factory | Z-intel Adv. Myomer Leg | -4/Extension | Z-intel Exp. Targeting Computer | -4/Extension | Z-intel Cld. Phase Gun | -4/Extension | Z-intel Adv. Matter Compressor | -4/Extension | Z-intel Imp. Fusion Compressor | -4/Extension | Z-intel Enh. Force Rifle | -4/Extension | Z-intel Adv. Plasma Rifle | -4/Extension | Z-intel Imp. Matter Compressor | -4/Extension | Z-intel Thermal Defense Suite | -4/Cetus | Z-intel Prc. Energy Filter | -4/Cetus | Z-intel Cld. Phase Cannon | -4/Cetus | Z-intel Gravity Neutralizing Apparatus | -4/Cetus | Z-intel Exp. Cooling System | -4/Cetus | Z-intel Exp. Optical Array | -4/Cetus | Z-intel Cld. Proton Cannon | -4/Cetus | Z-intel Antimatter Cannon | -4/Cetus | Z-intel Particle Accelerator | -4/Cetus | Z-intel Lrn. Phase Cannon | -4/Cetus | Z-intel Exp. ECM Suite | -4/Cetus | Z-intel Exp. Signal Interpreter | -4/Cetus | Z-intel Imp. Propulsion Shielding | -4/Cetus | Z-intel Imp. Thermal Shield | -4/Cetus | Z-intel Hvy. Gauss Cannon | -4/Cetus | Z-intel Remote Shield | -4/Cetus | Z-intel Hyp. Coil Gun | -4/Cetus | Z-intel Impulse Thruster | -4/Cetus | Z-intel Adv. Hardlight Generator | -4/Cetus | Z-intel System Guard | -4/Cetus | Z-intel Plasma Cutter | -4/Cetus | Z-intel Adv. Medium Treads | -4/Cetus | Z-intel Lrn. Terrain Scanner | -4/Cetus | Z-intel Thermal Converter | -4/Cetus | Z-intel Robot Schematics ------------------ S-27 Virus | -7/Data Miner | Free G-50 Soldier | -7/Data Miner | Free L-41 Fighter | -7/Data Miner | Free H-66 Slayer | -7/Data Miner | Free I-36 Angel | -7/Data Miner | Free P-70 Sage | -7/Data Miner | Free I-47 Archangel | -7/Data Miner | Free Fabricated ------------ L-41 Fighter | x3 | -7/Factory | Preloaded Exp. Sensor Array | x1 | -6/Factory Alien Tech Used ----------------- Core Expander Achievements -------------- None Challenges ------------ None Game ------ Seed SystemVortexPerforator Manual? 0 Play Time 03:07:45 Cumulative 1177.1 hours Start 2021.05.13 @ 21:15:28 End 2021.05.15 @ 22:34:20 Sessions 3 Manual Loads 0 Difficulty Rogue Special Mode None Game No. 402 Rogue 402 Adventurer 0 Explorer 0 Win Type - Total 84 Types 15/10/37/5/1/2/12/1/1 Lore% 96 Gallery% 96 Achievement% 85 Wizard Run 0 Options --------- ASCII 0 Keyboard 0 Movement Numpad Keybinds 0 Fullscreen 1 Font 18/SmallcapsGlow Map View 76x50 Tactical HUD 1 Map Filters NONE Filters NONE Steam 1 RUN: 76593b20-a0b2-4ef2-9874-5e0330cf3edb